[Event "Hungary Olimpic Hopes 2022"]
[Site "Tapolca"]
[Date "2022.06.25"]
[Round "6.17"]
[White "Minga-Nagy, Abel Inti"]
[Black "Szollosi, Balazs"]
[Result "1-0"]
[ECO "A45"]
[WhiteElo "1364"]
[BlackElo "1294"]
[Annotator "NA RC"]
[PlyCount "97"]
[EventDate "2022.06.23"]
[EventType "swiss"]
[EventCountry "HUN"]
[SourceTitle "playchess.com"]
[Source "ChessBase"]
[SourceQuality "1"]
[TimeControl "5400+30"]

1. d4 {[%emt 0:30:03]} Nf6 {[%emt 0:30:10]} 2. Bf4 {[%emt 0:00:34]} d5 {[%emt 0:00:27]} 3. e3 {[%emt 0:00:53]} Bf5 {[%emt 0:00:32]} 4. c3 {[%emt 0:00:31]} c6 {[%emt 0:00:49]} 5. Nd2 {[%emt 0:00:29]} Nbd7 {[%emt 0:00:21]} 6. Ngf3 {[%emt 0:00:25]} e6 {[%emt 0:00:20]} 7. Be2 {[%emt 0:01:06]} Be7 {[%emt 0:01:15]} 8. O-O {[%emt 0:00:59]} O-O {[%emt 0:00:30]} 9. Nh4 {[%emt 0:01:23]} Bg6 {[%emt 0:03:32]} 10. Nxg6 {[%emt 0:00:49]} hxg6 {[%emt 0:00:24]} 11. Qb3 Nb6 {[%emt 0:00:21]} 12. c4 {[%emt 0:02:14]} dxc4 {[%emt 0:00:39]} 13. Nxc4 {[%emt 0:01:50]} Nfd5 {[%emt 0:01:41]} 14. Bg3 {[%emt 0:03:18]} Nxc4 15. Bxc4 {[%emt 0:01:32]} Nb6 {[%emt 0:00:56]} 16. Bd3 Re8 {[%emt 0:04:11]} 17. a4 {[%emt 0:02:20]} Qd5 18. Qc2 Rac8 {[%emt 0:03:06]} 19. a5 {[%emt 0:04:12]} Nd7 {[%emt 0:03:15]} 20. Bc4 {[%emt 0:01:42]} Qg5 {[%emt 0:00:35]} 21. f4 {[%emt 0:01:33]} Qh6 {[%emt 0:01:25]} 22. e4 Bh4 {[%emt 0:00:50]} 23. f5 {[%emt 0:02:08]} Bxg3 {[%emt 0:02:37]} 24. hxg3 {[%emt 0:02:20]} Qe3+ {[%emt 0:01:18]} 25. Qf2 Qxf2+ 26. Rxf2 {[%emt 0:02:05]} gxf5 {[%emt 0:00:54]} 27. exf5 {[%emt 0:01:21]} e5 {[%emt 0:04:59]} 28. d5 {[%emt 0:01:01]} Nf6 {[%emt 0:00:45]} 29. dxc6 {[%emt 0:01:12]} bxc6 {[%emt 0:00:56]} 30. Re2 {[%emt 0:01:30]} e4 {[%emt 0:00:50]} 31. Rae1 {[%emt 0:00:44]} Re5 {[%emt 0:02:54]} 32. g4 {[%emt 0:01:01]} Rce8 {[%emt 0:00:34]} 33. g5 {[%emt 0:01:15]} Nd5 {[%emt 0:01:56]} 34. g4 {[%emt 0:02:14]} Kf8 {[%emt 0:01:34]} 35. Kf2 {[%emt 0:00:27]} Nf4 {[%emt 0:01:20]} 36. Re3 {[%emt 0:00:44]} Rb8 {[%emt 0:01:40]} 37. Kg3 {[%emt 0:00:14]} Nd5 38. Rxe4 {[%emt 0:00:07]} Rxe4 {[%emt 0:00:43]} 39. Rxe4 {[%emt 0:00:33]} Rxb2 {[%emt 0:04:27]} 40. Re5 {[%emt 0:01:51]} Rd2 41. g6 {[%emt 0:01:10]} Rd4 {[%emt 0:01:30]} 42. Ba6 {[%emt 0:00:29]} Ra4 43. Bb7 {[%emt 0:00:43]} Ra3+ {[%emt 0:02:51]} 44. Kh4 {[%emt 0:01:49]} Ne7 {[%emt 0:02:02]} 45. gxf7 {[%emt 0:01:06]} Kxf7 {[%emt 0:01:22]} 46. Ba6 {[%emt 0:00:52]} Rc3 {[%emt 0:01:21]} 47. g5 {[%emt 0:01:17]} g6 {[%emt 0:00:36]} 48. f6 {[%emt 0:00:26]} Nf5+ {[%emt 0:00:37]} 49. Kg4 {[%emt 0:00:43]} 1-0

[Event "Hungary Olimpic Hopes 2022"]
[Site "Tapolca"]
[Date "2022.06.25"]
[Round "6.18"]
[White "Molnar-Saska, Tamas"]
[Black "Hangay, Oliver"]
[Result "1/2-1/2"]
[ECO "C54"]
[WhiteElo "1458"]
[BlackElo "1627"]
[Annotator "NA RC"]
[PlyCount "80"]
[EventDate "2022.06.23"]
[EventType "swiss"]
[EventCountry "HUN"]
[SourceTitle "playchess.com"]
[Source "ChessBase"]
[SourceQuality "1"]
[TimeControl "5400+30"]

1. e4 {[%emt 0:30:05]} e5 {[%emt 0:30:07]} 2. Nf3 {[%emt 0:00:21]} Nc6 {[%emt 0:00:16]} 3. Bc4 {[%emt 0:00:09]} Bc5 {[%emt 0:00:16]} 4. c3 {[%emt 0:00:09]} Nf6 {[%emt 0:00:44]} 5. d3 {[%emt 0:00:46]} d6 {[%emt 0:01:03]} 6. h3 {[%emt 0:00:23]} O-O {[%emt 0:01:00]} 7. Bg5 {[%emt 0:01:19]} h6 {[%emt 0:01:22]} 8. Bh4 {[%emt 0:00:41]} Be6 {[%emt 0:00:21]} 9. Bb3 {[%emt 0:03:14]} Bxb3 {[%emt 0:04:09]} 10. Qxb3 {[%emt 0:00:24]} Bb6 {[%emt 0:02:53]} 11. O-O {[%emt 0:01:17]} g5 12. Bg3 {[%emt 0:02:48]} Nh5 {[%emt 0:02:27]} 13. Bh2 Nf4 {[%emt 0:02:46]} 14. Bxf4 {[%emt 0:05:25]} gxf4 {[%emt 0:00:41]} 15. Nbd2 Rb8 {[%emt 0:11:13]} 16. Nc4 {[%emt 0:03:18]} Na5 {[%emt 0:00:41]} 17. Nxa5 {[%emt 0:00:41]} Bxa5 18. Qd1 Bb6 {[%emt 0:06:46]} 19. a4 {[%emt 0:05:48]} a6 20. Kh1 {[%emt 0:01:59]} Kh8 {[%emt 0:02:28]} 21. d4 {[%emt 0:00:32]} Qf6 {[%emt 0:01:57]} 22. a5 {[%emt 0:01:04]} Ba7 {[%emt 0:00:17]} 23. dxe5 {[%emt 0:00:23]} dxe5 {[%emt 0:00:52]} 24. Qd5 {[%emt 0:01:09]} Rfe8 25. Rad1 {[%emt 0:03:50]} Kg7 {[%emt 0:05:41]} 26. b4 {[%emt 0:02:25]} c6 27. Qd6 {[%emt 0:01:51]} Rbd8 {[%emt 0:02:37]} 28. Qc7 {[%emt 0:01:37]} Rxd1 29. Rxd1 {[%emt 0:03:45]} Re7 {[%emt 0:04:48]} 30. Qd6 Qxd6 {[%emt 0:01:40]} 31. Rxd6 {[%emt 0:00:41]} Bxf2 {[%emt 0:01:46]} 32. Kh2 {[%emt 0:02:18]} f6 33. Rd2 {[%emt 0:00:56]} Bg3+ {[%emt 0:02:44]} 34. Kg1 {[%emt 0:00:18]} Kf7 {[%emt 0:00:31]} 35. Kf1 h5 {[%emt 0:04:09]} 36. Ke2 {[%emt 0:03:59]} h4 37. Rd8 {[%emt 0:02:10]} Kg7 {[%emt 0:01:31]} 38. Rd6 {[%emt 0:00:53]} Rc7 {[%emt 0:01:10]} 39. c4 {[%emt 0:04:00]} c5 40. b5 {[%emt 0:02:25]} axb5 {[%emt 0:03:41]} 1/2-1/2

[Event "Hungary Olimpic Hopes 2022"]
[Site "Tapolca"]
[Date "2022.06.25"]
[Round "6.20"]
[White "Hangyal, Anna"]
[Black "Csiszar, Vivien"]
[Result "1-0"]
[ECO "A05"]
[WhiteElo "1105"]
[BlackElo "1082"]
[Annotator "NA RC"]
[PlyCount "117"]
[EventDate "2022.06.23"]
[EventType "swiss"]
[EventCountry "HUN"]
[SourceTitle "playchess.com"]
[Source "ChessBase"]
[SourceQuality "1"]
[TimeControl "5400+30"]

1. Nf3 {[%emt 0:30:11]} Nf6 {[%emt 0:33:48]} 2. Nc3 {[%emt 0:00:09]} d5 {[%emt 0:00:19]} 3. d4 {[%emt 0:00:07]} g6 {[%emt 0:00:24]} 4. Bf4 {[%emt 0:00:12]} Bg7 {[%emt 0:01:01]} 5. Nb5 {[%emt 0:00:27]} O-O {[%emt 0:08:59]} 6. e3 {[%emt 0:00:01]} Nc6 {[%emt 0:01:44]} 7. Nxc7 {[%emt 0:00:30]} Rb8 {[%emt 0:01:06]} 8. Nb5 {[%emt 0:03:44]} Ra8 {[%emt 0:02:16]} 9. Ne5 {[%emt 0:01:52]} Bf5 {[%emt 0:06:07]} 10. Bd3 {[%emt 0:07:58]} Bxd3 {[%emt 0:01:47]} 11. Nxd3 {[%emt 0:00:43]} Qa5+ {[%emt 0:02:16]} 12. Nc3 {[%emt 0:01:58]} Ne4 {[%emt 0:01:51]} 13. O-O {[%emt 0:00:14]} Nxc3 {[%emt 0:01:00]} 14. bxc3 {[%emt 0:00:11]} Qxc3 {[%emt 0:00:26]} 15. Rb1 {[%emt 0:00:08]} b6 {[%emt 0:04:09]} 16. Rb3 {[%emt 0:11:34]} Qa5 {[%emt 0:00:31]} 17. Qb1 {[%emt 0:00:22]} Qa6 {[%emt 0:02:22]} 18. Nb4 {[%emt 0:04:58]} Nxb4 {[%emt 0:00:32]} 19. Rxb4 {[%emt 0:02:25]} Qc8 {[%emt 0:01:13]} 20. Rc1 {[%emt 0:00:20]} Qd7 {[%emt 0:02:21]} 21. c4 {[%emt 0:02:01]} e6 {[%emt 0:01:07]} 22. c5 {[%emt 0:00:25]} bxc5 {[%emt 0:01:44]} 23. Rxc5 {[%emt 0:00:12]} Rfc8 {[%emt 0:01:30]} 24. Rcb5 {[%emt 0:08:24]} Qe7 {[%emt 0:14:17]} 25. Rb7 {[%emt 0:01:10]} Qd8 {[%emt 0:00:41]} 26. h3 {[%emt 0:01:23]} h6 {[%emt 0:03:41]} 27. g4 {[%emt 0:03:33]} Bf6 {[%emt 0:01:43]} 28. Kh2 {[%emt 0:02:16]} Bg5 {[%emt 0:01:08]} 29. Bxg5 {[%emt 0:03:48]} Qxg5 {[%emt 0:00:07]} 30. Kg3 {[%emt 0:00:04]} Qd8 {[%emt 0:00:56]} 31. Qb3 {[%emt 0:02:30]} Rc7 {[%emt 0:01:07]} 32. Rb8 {[%emt 0:01:17]} Rxb8 {[%emt 0:00:06]} 33. Rxb8 {[%emt 0:00:06]} Rc8 {[%emt 0:00:14]} 34. Rb7 {[%emt 0:00:14]} Rc7 {[%emt 0:00:29]} 35. Qb4 {[%emt 0:01:43]} Rxb7 {[%emt 0:02:02]} 36. Qxb7 {[%emt 0:00:11]} Qd6+ {[%emt 0:00:10]} 37. Kg2 {[%emt 0:00:14]} Qa3 {[%emt 0:00:17]} 38. Qb8+ {[%emt 0:00:15]} Kg7 {[%emt 0:00:09]} 39. Qe5+ {[%emt 0:01:04]} Kg8 {[%emt 0:00:07]} 40. Qb8+ {[%emt 0:00:09]} Kg7 {[%emt 0:00:07]} 41. Qb3 {[%emt 0:01:16]} Qxb3 {[%emt 0:00:23]} 42. axb3 {[%emt 0:00:06]} Kf6 {[%emt 0:00:27]} 43. Kg3 {[%emt 0:01:09]} e5 44. Kf3 {[%emt 0:01:24]} e4+ {[%emt 0:01:20]} 45. Kg3 {[%emt 0:00:27]} h5 {[%emt 0:00:32]} 46. gxh5 {[%emt 0:00:20]} gxh5 {[%emt 0:00:19]} 47. Kf4 {[%emt 0:00:34]} a6 {[%emt 0:00:12]} 48. b4 {[%emt 0:00:09]} h4 {[%emt 0:01:07]} 49. Kg4 {[%emt 0:00:17]} Kg6 {[%emt 0:00:05]} 50. Kxh4 {[%emt 0:00:16]} Kh6 {[%emt 0:00:10]} 51. Kg4 {[%emt 0:00:56]} Kg6 {[%emt 0:00:07]} 52. h4 {[%emt 0:00:04]} f5+ {[%emt 0:00:05]} 53. Kf4 {[%emt 0:00:05]} Kh5 {[%emt 0:00:48]} 54. Kxf5 {[%emt 0:00:11]} Kxh4 {[%emt 0:00:09]} 55. Ke5 {[%emt 0:00:06]} Kg4 {[%emt 0:00:09]} 56. Kxd5 {[%emt 0:00:24]} Kf3 {[%emt 0:01:22]} 57. Ke5 {[%emt 0:00:07]} Kxf2 {[%emt 0:00:19]} 58. d5 {[%emt 0:00:05]} Kxe3 {[%emt 0:00:27]} 59. d6 {[%emt 0:00:04]} 1-0

[Event "Hungary Olimpic Hopes 2022"]
[Site "Tapolca"]
[Date "2022.06.26"]
[Round "7.1"]
[White "Csernyik, Mark"]
[Black "Giang, Tran Nam"]
[Result "1/2-1/2"]
[ECO "B43"]
[WhiteElo "1988"]
[BlackElo "2124"]
[Annotator "NA RC"]
[PlyCount "76"]
[EventDate "2022.06.23"]
[EventType "swiss"]
[EventCountry "HUN"]
[SourceTitle "playchess.com"]
[Source "ChessBase"]
[SourceQuality "1"]
[TimeControl "5400+30"]

1. e4 {[%emt 0:00:03]} c5 {[%emt 0:00:08]} 2. Nf3 {[%emt 0:00:04]} e6 {[%emt 0:00:06]} 3. d4 {[%emt 0:00:06]} cxd4 {[%emt 0:00:05]} 4. Nxd4 {[%emt 0:00:05]} a6 {[%emt 0:00:10]} 5. Nc3 {[%emt 0:00:42]} Qc7 {[%emt 0:00:13]} 6. Bd3 {[%emt 0:00:39]} Nc6 {[%emt 0:00:06]} 7. Nxc6 {[%emt 0:05:41]} dxc6 {[%emt 0:02:25]} 8. O-O {[%emt 0:00:17]} e5 {[%emt 0:01:15]} 9. f4 {[%emt 0:01:35]} Bc5+ {[%emt 0:05:05]} 10. Kh1 {[%emt 0:00:56]} Nf6 {[%emt 0:00:45]} 11. fxe5 {[%emt 0:03:30]} Ng4 {[%emt 0:01:42]} 12. Qf3 {[%emt 0:01:12]} Nxe5 {[%emt 0:04:12]} 13. Qg3 {[%emt 0:00:50]} O-O {[%emt 0:02:11]} 14. Bf4 {[%emt 0:04:52]} Bd6 {[%emt 0:01:21]} 15. Rad1 {[%emt 0:01:23]} Re8 {[%emt 0:10:01]} 16. Ne2 {[%emt 0:02:56]} Be6 {[%emt 0:11:37]} 17. Nd4 {[%emt 0:10:23]} Rad8 {[%emt 0:05:50]} 18. Nf5 {[%emt 0:08:26]} Bxf5 {[%emt 0:00:37]} 19. exf5 {[%emt 0:00:10]} Nxd3 {[%emt 0:09:13]} 20. f6 {[%emt 0:12:08]} g6 {[%emt 0:02:45]} 21. cxd3 {[%emt 0:01:36]} Bxf4 {[%emt 0:01:06]} 22. Rxf4 {[%emt 0:00:12]} Rxd3 {[%emt 0:06:19]} 23. Qxd3 {[%emt 0:00:24]} Qxf4 {[%emt 0:00:13]} 24. Qd7 {[%emt 0:00:10]} Qe4 {[%emt 0:07:04]} 25. h3 c5 {[%emt 0:03:42]} 26. a4 {[%emt 0:03:00]} h5 27. a5 {[%emt 0:02:51]} Qe5 {[%emt 0:03:49]} 28. b3 {[%emt 0:03:50]} Re6 29. Qd8+ {[%emt 0:01:32]} Kh7 {[%emt 0:04:27]} 30. Rf1 {[%emt 0:00:31]} Qd6 {[%emt 0:01:56]} 31. Qc8 {[%emt 0:01:00]} Qd3 {[%emt 0:02:22]} 32. Kg1 {[%emt 0:01:40]} Qd4+ {[%emt 0:02:07]} 33. Kh1 {[%emt 0:01:58]} Rxf6 {[%emt 0:01:56]} 34. Rxf6 {[%emt 0:00:07]} Qxf6 {[%emt 0:00:27]} 35. Qxb7 {[%emt 0:00:30]} Kg7 {[%emt 0:01:11]} 36. Qb6 {[%emt 0:00:35]} Qf1+ {[%emt 0:00:44]} 37. Kh2 {[%emt 0:00:06]} Qf4+ {[%emt 0:00:19]} 38. Kh1 {[%emt 0:00:06]} Qf1+ {[%emt 0:00:41]} 1/2-1/2

[Event "Hungary Olimpic Hopes 2022"]
[Site "Tapolca"]
[Date "2022.06.26"]
[Round "7.2"]
[White "Gergely, Daniel"]
[Black "Szakmary, Domonkos"]
[Result "1/2-1/2"]
[ECO "D00"]
[WhiteElo "1964"]
[BlackElo "1934"]
[Annotator "NA RC"]
[PlyCount "28"]
[EventDate "2022.06.23"]
[EventType "swiss"]
[EventCountry "HUN"]
[SourceTitle "playchess.com"]
[Source "ChessBase"]
[SourceQuality "1"]
[TimeControl "5400+30"]

1. d4 {[%emt 0:00:05]} d5 {[%emt 0:00:08]} 2. Bf4 {[%emt 0:00:13]} Nf6 {[%emt 0:00:07]} 3. e3 {[%emt 0:00:15]} c5 {[%emt 0:00:07]} 4. c3 {[%emt 0:00:25]} Nc6 {[%emt 0:00:13]} 5. Nf3 {[%emt 0:00:27]} Qb6 {[%emt 0:00:16]} 6. Qc2 {[%emt 0:00:21]} e6 {[%emt 0:02:49]} 7. Nbd2 {[%emt 0:00:59]} Be7 {[%emt 0:00:34]} 8. Bd3 {[%emt 0:01:05]} h6 {[%emt 0:00:41]} 9. h3 {[%emt 0:01:06]} Bd7 {[%emt 0:00:32]} 10. O-O O-O 11. Ne5 {[%emt 0:03:44]} Rac8 {[%emt 0:02:58]} 12. Qb3 {[%emt 0:01:16]} c4 {[%emt 0:00:26]} 13. Qxb6 {[%emt 0:00:21]} axb6 {[%emt 0:00:05]} 14. Be2 {[%emt 0:00:53]} b5 {[%emt 0:00:21]} 1/2-1/2

[Event "Hungary Olimpic Hopes 2022"]
[Site "Tapolca"]
[Date "2022.06.26"]
[Round "7.3"]
[White "Szegedy, Matyas"]
[Black "Bodrogi, Bendeguz"]
[Result "1-0"]
[ECO "B32"]
[WhiteElo "2046"]
[BlackElo "2198"]
[Annotator "RC"]
[PlyCount "159"]
[EventDate "2022.06.23"]
[EventType "swiss"]
[EventCountry "HUN"]
[SourceTitle "playchess.com"]
[Source "ChessBase"]
[SourceQuality "1"]
[TimeControl "5400+30"]

1. e4 {[%emt 0:00:16]} c5 2. Nf3 {[%emt 0:00:06]} Nc6 {[%emt 0:00:14]} 3. d4 {[%emt 0:00:11]} cxd4 {[%emt 0:00:06]} 4. Nxd4 {[%emt 0:00:06]} e5 5. Nb5 {[%emt 0:01:07]} d6 {[%emt 0:00:15]} 6. N1c3 {[%emt 0:00:10]} a6 {[%emt 0:00:02]} 7. Na3 {[%emt 0:00:06]} Be7 8. Be3 {[%emt 0:00:43]} Nf6 {[%emt 0:00:08]} 9. Nc4 {[%emt 0:00:10]} b5 10. Nb6 {[%emt 0:00:40]} Rb8 {[%emt 0:00:08]} 11. Nxc8 {[%emt 0:00:07]} Qxc8 {[%emt 0:01:44]} 12. Bd3 {[%emt 0:01:02]} O-O {[%emt 0:09:59]} 13. O-O {[%emt 0:05:16]} Rd8 {[%emt 0:06:13]} 14. a4 {[%emt 0:06:34]} Nb4 {[%emt 0:03:23]} 15. axb5 {[%emt 0:04:29]} axb5 {[%emt 0:09:08]} 16. Bg5 {[%emt 0:06:36]} Qc5 {[%emt 0:00:30]} 17. Ra5 {[%emt 0:00:30]} d5 {[%emt 0:00:30]} 18. Bxf6 {[%emt 0:00:30]} Bxf6 {[%emt 0:00:30]} 19. exd5 {[%emt 0:00:30]} Nxd5 {[%emt 0:00:30]} 20. Nxd5 {[%emt 0:00:30]} Rxd5 {[%emt 0:10:27]} 21. Qe2 {[%emt 0:05:27]} Qb4 {[%emt 0:03:25]} 22. Rfa1 {[%emt 0:06:04]} Qxb2 {[%emt 0:01:26]} 23. Qe4 {[%emt 0:03:05]} Rxd3 {[%emt 0:01:11]} 24. cxd3 {[%emt 0:00:50]} g6 {[%emt 0:01:26]} 25. Ra8 {[%emt 0:00:30]} Rxa8 {[%emt 0:00:30]} 26. Rxa8+ {[%emt 0:00:30]} Kg7 {[%emt 0:00:30]} 27. g3 {[%emt 0:01:24]} Qb3 {[%emt 0:17:49]} 28. Ra7 {[%emt 0:05:03]} h5 {[%emt 0:00:30]} 29. h4 {[%emt 0:03:04]} Qe6 {[%emt 0:14:04]} 30. Rb7 {[%emt 0:01:08]} Qb3 {[%emt 0:02:54]} 31. Kg2 {[%emt 0:01:35]} Kg8 {[%emt 0:01:16]} 32. Qc6 {[%emt 0:03:38]} Bg7 {[%emt 0:00:26]} 33. Qe8+ {[%emt 0:01:11]} Bf8 34. Qxb5 Qxb5 {[%emt 0:02:23]} 35. Rxb5 {[%emt 0:00:32]} Bg7 {[%emt 0:00:40]} 36. Rb8+ {[%emt 0:00:28]} Kh7 {[%emt 0:00:40]} 37. Kf3 {[%emt 0:00:09]} f5 {[%emt 0:00:03]} 38. Rb6 {[%emt 0:00:44]} Bf8 {[%emt 0:00:36]} 39. Re6 {[%emt 0:00:07]} Bg7 {[%emt 0:00:04]} 40. Ke2 {[%emt 0:00:48]} Bh8 {[%emt 0:00:25]} 41. Kd2 {[%emt 0:00:11]} e4 {[%emt 0:01:23]} 42. dxe4 {[%emt 0:00:06]} fxe4 {[%emt 0:00:03]} 43. Ke3 {[%emt 0:00:10]} Bc3 {[%emt 0:00:16]} 44. Kxe4 {[%emt 0:00:56]} Kg7 {[%emt 0:00:01]} 45. f4 {[%emt 0:00:51]} Be1 {[%emt 0:00:07]} 46. f5 {[%emt 0:00:59]} gxf5+ {[%emt 0:00:39]} 47. Kxf5 {[%emt 0:00:02]} Bd2 {[%emt 0:00:24]} 48. Rg6+ {[%emt 0:01:24]} Kh7 {[%emt 0:00:33]} 49. Rd6 {[%emt 0:00:25]} Bc1 {[%emt 0:00:44]} 50. Rd7+ {[%emt 0:01:45]} Kh6 {[%emt 0:00:10]} 51. Rd1 {[%emt 0:00:03]} Be3 {[%emt 0:00:41]} 52. Ke4 {[%emt 0:00:06]} Bc5 {[%emt 0:00:52]} 53. Rc1 {[%emt 0:00:07]} Bb4 {[%emt 0:00:48]} 54. Rd1 {[%emt 0:09:39]} Kg6 {[%emt 0:00:47]} 55. Kf4 {[%emt 0:00:04]} Ba3 {[%emt 0:00:26]} 56. Rb1 {[%emt 0:00:22]} Bd6+ {[%emt 0:00:40]} 57. Ke4 {[%emt 0:00:17]} Ba3 {[%emt 0:02:52]} 58. Rb6+ {[%emt 0:02:27]} Kg7 {[%emt 0:00:08]} 59. Rc6 {[%emt 0:00:04]} Bb4 {[%emt 0:00:09]} 60. Rc2 {[%emt 0:00:06]} Kg6 {[%emt 0:00:14]} 61. Kf4 {[%emt 0:00:07]} Bd6+ {[%emt 0:00:13]} 62. Ke4 {[%emt 0:00:04]} Bb4 {[%emt 0:00:14]} 63. Ke5 {[%emt 0:00:26]} Be1 {[%emt 0:00:30]} 64. Rc6+ {[%emt 0:00:09]} Kg7 {[%emt 0:00:22]} 65. Rc2 {[%emt 0:00:49]} Kg6 {[%emt 0:00:06]} 66. Kf4 {[%emt 0:00:07]} Kf7 {[%emt 0:02:59]} 67. Rc7+ {[%emt 0:01:07]} Kg6 {[%emt 0:00:10]} 68. Rc6+ {[%emt 0:00:16]} Kf7 {[%emt 0:00:18]} 69. Rd6 {[%emt 0:00:46]} Bb4 {[%emt 0:00:29]} 70. Rd5 {[%emt 0:01:09]} Kg6 {[%emt 0:00:06]} 71. g4 {[%emt 0:00:22]} hxg4 {[%emt 0:00:04]} 72. h5+ {[%emt 0:00:01]} Kh6 {[%emt 0:00:18]} 73. Kxg4 {[%emt 0:00:04]} Ba3 {[%emt 0:00:26]} 74. Rd1 {[%emt 0:00:20]} Bb4 {[%emt 0:00:29]} 75. Rd3 {[%emt 0:00:03]} Bc5 {[%emt 0:00:14]} 76. Rc3 {[%emt 0:00:09]} Bb4 {[%emt 0:00:13]} 77. Rc6+ {[%emt 0:00:07]} Kh7 {[%emt 0:01:08]} 78. h6 {[%emt 0:00:05]} Bd2 {[%emt 0:01:05]} 79. Kh5 {[%emt 0:00:02]} Bf4 {[%emt 0:00:03]} 80. Rb6 {[%emt 0:00:08]} 1-0

[Event "Hungary Olimpic Hopes 2022"]
[Site "Tapolca"]
[Date "2022.06.26"]
[Round "7.4"]
[White "Turcsanyi, Vince Gergo"]
[Black "Matyassy, Lazar"]
[Result "1/2-1/2"]
[ECO "B23"]
[WhiteElo "2120"]
[BlackElo "2161"]
[Annotator "RC"]
[PlyCount "27"]
[EventDate "2022.06.23"]
[EventType "swiss"]
[EventCountry "HUN"]
[SourceTitle "playchess.com"]
[Source "ChessBase"]
[SourceQuality "1"]
[TimeControl "5400+30"]

1. e4 {[%emt 0:00:03]} c5 {[%emt 0:00:14]} 2. Nc3 Nc6 {[%emt 0:04:03]} 3. f4 {[%emt 0:02:18]} e6 {[%emt 0:05:33]} 4. Nf3 {[%emt 0:00:26]} d5 {[%emt 0:00:22]} 5. exd5 {[%emt 0:05:32]} exd5 {[%emt 0:00:26]} 6. Bb5 {[%emt 0:01:42]} Bg4 {[%emt 0:30:20]} 7. O-O {[%emt 0:08:49]} Be7 {[%emt 0:02:50]} 8. h3 {[%emt 0:06:16]} Bxf3 {[%emt 0:01:42]} 9. Qxf3 {[%emt 0:00:26]} Nf6 {[%emt 0:02:02]} 10. Bxc6+ {[%emt 0:04:32]} bxc6 {[%emt 0:00:50]} 11. b3 {[%emt 0:00:20]} O-O {[%emt 0:01:01]} 12. Ba3 {[%emt 0:02:47]} Re8 {[%emt 0:28:48]} 13. Rfe1 {[%emt 0:06:36]} Qa5 {[%emt 0:00:02]} 14. Bb2 {[%emt 0:19:42]} 1/2-1/2

[Event "Hungary Olimpic Hopes 2022"]
[Site "Tapolca"]
[Date "2022.06.26"]
[Round "7.5"]
[White "Kovacs, Reka"]
[Black "Eros, Vivien"]
[Result "1-0"]
[ECO "B01"]
[WhiteElo "1685"]
[BlackElo "1592"]
[Annotator "NA RC"]
[PlyCount "81"]
[EventDate "2022.06.23"]
[EventType "swiss"]
[EventCountry "HUN"]
[SourceTitle "playchess.com"]
[Source "ChessBase"]
[SourceQuality "1"]
[TimeControl "5400+30"]

1. e4 {[%emt 0:00:03]} d5 {[%emt 0:00:02]} 2. exd5 {[%emt 0:00:07]} Qxd5 {[%emt 0:00:04]} 3. Nc3 {[%emt 0:00:10]} Qd6 {[%emt 0:00:06]} 4. d4 {[%emt 0:00:18]} Nf6 {[%emt 0:00:06]} 5. g3 {[%emt 0:02:54]} c6 {[%emt 0:02:26]} 6. Bg2 {[%emt 0:00:52]} Be6 {[%emt 0:03:41]} 7. Nge2 {[%emt 0:06:06]} Nbd7 {[%emt 0:01:15]} 8. Bf4 {[%emt 0:05:58]} Qb4 {[%emt 0:00:06]} 9. Qd2 {[%emt 0:03:25]} Nd5 {[%emt 0:02:54]} 10. O-O {[%emt 0:17:14]} N7f6 {[%emt 0:06:25]} 11. Nxd5 {[%emt 0:09:50]} Nxd5 {[%emt 0:00:14]} 12. Bxd5 {[%emt 0:00:17]} Qxd2 {[%emt 0:00:04]} 13. Bxc6+ {[%emt 0:00:15]} bxc6 {[%emt 0:00:05]} 14. Bxd2 {[%emt 0:00:07]} Bc4 {[%emt 0:03:08]} 15. Rfe1 {[%emt 0:00:10]} O-O-O {[%emt 0:05:13]} 16. Be3 g6 {[%emt 0:02:27]} 17. b3 {[%emt 0:03:02]} Bxe2 {[%emt 0:00:13]} 18. Rxe2 {[%emt 0:00:02]} Bg7 {[%emt 0:00:14]} 19. Rd1 {[%emt 0:01:22]} Rd7 20. Red2 {[%emt 0:01:37]} Rhd8 {[%emt 0:07:56]} 21. Kf1 Kb7 {[%emt 0:05:51]} 22. Ke2 {[%emt 0:01:37]} a5 {[%emt 0:01:48]} 23. a4 {[%emt 0:03:46]} e6 {[%emt 0:00:36]} 24. Rd3 {[%emt 0:01:49]} h5 {[%emt 0:04:36]} 25. Bg5 {[%emt 0:03:23]} f6 {[%emt 0:00:15]} 26. Bd2 {[%emt 0:01:09]} Ka6 {[%emt 0:02:46]} 27. Rc3 {[%emt 0:01:25]} Kb6 {[%emt 0:06:07]} 28. Rc5 {[%emt 0:00:34]} Rxd4 {[%emt 0:00:22]} 29. Bxa5+ {[%emt 0:02:24]} Kxc5 {[%emt 0:00:32]} 30. Bxd8 {[%emt 0:00:03]} Rxd1 {[%emt 0:03:08]} 31. Kxd1 {[%emt 0:00:02]} f5 {[%emt 0:00:10]} 32. Ke2 {[%emt 0:06:38]} Bd4 {[%emt 0:05:16]} 33. Bg5 {[%emt 0:01:43]} Kd6 {[%emt 0:02:28]} 34. Be3 {[%emt 0:01:16]} Bc3 {[%emt 0:00:06]} 35. f3 {[%emt 0:01:09]} Ba5 {[%emt 0:01:26]} 36. h3 {[%emt 0:03:19]} e5 {[%emt 0:01:06]} 37. Kd3 {[%emt 0:01:39]} Kd5 {[%emt 0:00:51]} 38. c4+ {[%emt 0:01:08]} Kd6 {[%emt 0:00:08]} 39. Bd2 {[%emt 0:00:50]} Bb6 {[%emt 0:01:04]} 40. a5 {[%emt 0:00:50]} Bd8 {[%emt 0:00:49]} 41. a6 {[%emt 0:01:45]} 1-0